bitfinex-derivatives/quotes_BNBF0:USTF0_20250807
["timestamp","ask_amount","ask_price","bid_price","bid_amount"]
[1754605588396,0.87341795,784.7,784.31,0.796]
[1754605588597,0.87341795,784.69,784.31,0.796]
[1754605588895,0.87341795,784.68,784.31,0.796]
[1754605589095,0.85713897,784.6,784.31,0.796]
[1754605589399,0.87341795,784.59,784.31,0.796]
[1754605589594,0.87341795,784.58,784.31,0.796]
[1754605589797,0.87341795,784.57,784.31,0.796]
[1754605589995,0.87341795,784.56,784.31,0.796]
[1754605590194,0.87341795,784.55,784.31,0.796]
[1754605590393,0.87341795,784.54,784.31,0.796]
[1754605590594,0.87341795,784.53,784.31,0.796]
[1754605590794,0.87341795,784.52,784.31,0.796]
[1754605590998,0.87341795,784.51,784.31,0.796]
[1754605591198,0.87341795,784.5,784.31,0.796]
[1754605591494,0.87341795,784.49,784.31,0.796]
[1754605591698,0.87341795,784.48,784.31,0.796]
[1754605591898,0.87341795,784.47,784.31,0.796]
[1754605592098,0.87341795,784.46,784.31,0.796]
[1754605592296,0.87341795,784.45,784.31,0.796]
[1754605592497,0.87341795,784.44,784.31,0.796]
[1754605592693,0.87341795,784.43,784.31,0.796]
[1754605592898,0.87341795,784.42,784.31,0.796]
[1754605593197,0.87341795,784.41,784.31,0.796]
[1754605593398,0.87341795,784.4,784.31,0.796]
[1754605593698,0.87341795,784.39,784.31,0.796]
[1754605593898,0.87341795,784.38,784.31,0.796]
[1754605594099,0.87341795,784.37,784.31,0.796]
[1754605594398,0.87341795,784.36,784.31,0.796]
[1754605594594,0.87341795,784.35,784.31,0.796]
[1754605594799,0.85713897,784.7,784.31,0.796]
[1754605594994,0.87224571,784.69,784.31,0.796]
[1754605595197,0.87224571,784.68,784.31,0.796]
[1754605595398,0.87224571,784.67,784.31,0.796]
[1754605595598,0.87224571,784.66,784.31,0.796]
[1754605595795,0.87224571,784.65,784.31,0.796]
[1754605596098,0.87224571,784.64,784.31,0.796]
[1754605596394,0.87224571,784.63,784.31,0.796]
[1754605596598,0.87224571,784.62,784.31,0.796]
[1754605596794,0.87224571,784.61,784.31,0.796]
[1754605596994,0.87224571,784.6,784.31,0.796]
[1754605597194,0.87224571,784.59,784.31,0.796]
[1754605597399,0.87224571,784.58,784.31,0.796]
[1754605597597,0.87224571,784.57,784.31,0.796]
[1754605597795,0.87224571,784.56,784.31,0.796]
[1754605597997,0.87224571,784.55,784.32,0.958]
[1754605598198,0.87224571,784.54,784.32,0.958]
[1754605598494,0.87224571,784.53,784.32,0.958]
[1754605598697,0.87224571,784.52,784.32,0.958]
[1754605598898,0.87224571,784.51,784.32,0.958]
[1754605599194,0.87224571,784.5,784.32,0.958]
[1754605599394,0.87224571,784.49,784.32,0.958]
[1754605599593,0.87224571,784.48,784.32,0.958]
[1754605599898,0.87224571,784.47,784.32,0.958]
[1754605600095,0.87224571,784.46,784.32,0.958]
[1754605600298,0.87224571,784.45,784.32,0.958]
[1754605600495,0.87224571,784.44,784.32,0.958]
[1754605600699,0.87224571,784.43,784.32,0.958]
[1754605600898,0.87224571,784.42,784.32,0.958]
[1754605601102,0.87224571,784.41,784.32,0.958]
[1754605601403,0.87224571,784.4,784.32,0.958]
[1754605601701,0.87224571,784.39,784.32,0.958]
[1754605601902,0.87224571,784.38,784.32,0.958]
[1754605602104,0.85713897,784.83,784.32,0.958]
[1754605602297,0.87205567,784.82,784.32,0.958]
[1754605602601,0.87205567,784.81,784.32,0.958]
[1754605602800,0.87205567,784.8,784.32,0.958]
[1754605603101,0.87205567,784.79,784.32,0.958]
[1754605603398,0.87205567,784.78,784.32,0.958]
[1754605603699,0.87205567,784.77,784.33,0.839]
[1754605603902,0.87205567,784.76,784.33,0.839]
[1754605604202,0.87205567,784.75,784.33,0.839]
[1754605604401,0.87205567,784.74,784.33,0.839]
[1754605604602,0.87205567,784.73,784.33,0.839]
[1754605604898,0.87205567,784.72,784.33,0.839]
[1754605605102,0.87205567,784.71,784.33,0.839]
[1754605605302,0.87205567,784.7,784.33,0.839]
[1754605605603,0.87205567,784.69,784.33,0.839]
[1754605605899,0.87205567,784.68,784.33,0.839]
[1754605606102,0.87205567,784.67,784.33,0.839]
[1754605606302,0.87205567,784.66,784.33,0.839]
[1754605606502,0.87205567,784.65,784.33,0.839]
[1754605606701,0.87205567,784.64,784.33,0.839]
[1754605606899,0.87205567,784.63,784.33,0.839]
[1754605607103,0.87205567,784.62,784.33,0.839]
[1754605607304,0.87205567,784.61,784.33,0.839]
[1754605607503,0.87205567,784.6,784.33,0.839]
[1754605607802,0.87205567,784.59,784.33,0.839]
[1754605608005,0.87205567,784.58,784.33,0.839]
[1754605608202,0.87205567,784.57,784.33,0.839]
[1754605608500,0.87205567,784.56,784.33,0.839]
[1754605608697,0.87205567,784.55,784.33,0.839]
[1754605608900,1.1404153,784.98,784.33,0.839]
[1754605608901,0.87210089,784.54,784.33,0.839]
[1754605609099,0.87209803,784.53,784.33,0.839]
[1754605609298,0.87209803,784.52,784.33,0.839]
[1754605609500,0.87209803,784.51,784.33,0.839]
[1754605609702,0.87209803,784.5,784.33,0.839]
[1754605609899,0.87209803,784.49,784.33,0.839]
[1754605610103,0.87209803,784.48,784.33,0.839]
[1754605610299,0.87209803,784.47,784.33,0.839]
[1754605610505,0.87209803,784.46,784.33,0.839]
[1754605610699,0.87209803,784.45,784.33,0.839]
[1754605610899,0.87209803,784.44,784.33,0.839]
[1754605611201,0.85713897,784.94,784.33,0.839]
[1754605611400,0.87232699,784.93,784.33,0.839]
[1754605611603,0.87232699,784.92,784.33,0.839]
[1754605611803,0.87232699,784.91,784.33,0.839]
[1754605612000,0.87232699,784.9,784.33,0.839]
[1754605612204,0.87232699,784.89,784.33,0.839]
[1754605612401,0.87232699,784.88,784.33,0.839]
[1754605612699,0.87232699,784.87,784.33,0.839]
[1754605612899,0.87232699,784.86,784.33,0.839]
[1754605613099,0.87232699,784.85,784.33,0.839]
[1754605613301,0.85713897,784.94,784.33,0.839]
[1754605613302,0.87232699,784.84,784.33,0.839]
[1754605613501,0.87232699,784.83,784.33,0.839]
[1754605613701,0.87232699,784.82,784.33,0.839]
[1754605613901,0.87232699,784.81,784.33,0.839]
[1754605614102,0.87232699,784.8,784.33,0.839]
[1754605614302,0.87232699,784.79,784.33,0.839]
[1754605614505,0.87232699,784.78,784.33,0.839]
[1754605614707,0.87232699,784.77,784.33,0.839]
[1754605615005,0.87232699,784.76,784.33,0.839]
[1754605615201,0.87232699,784.75,784.33,0.839]
[1754605615407,0.87232699,784.74,784.33,0.839]
[1754605615604,0.87232699,784.73,784.33,0.839]
[1754605615802,0.87232699,784.72,784.34,1.012]
[1754605616003,0.87232699,784.71,784.34,1.012]
[1754605616307,0.87232699,784.7,784.34,1.012]
[1754605616504,0.87232699,784.69,784.34,1.012]
[1754605616707,0.87232699,784.68,784.34,1.012]
[1754605616908,0.87232699,784.67,784.34,1.012]
[1754605617107,0.87232699,784.66,784.34,1.012]
[1754605617307,0.87232699,784.65,784.34,1.012]
[1754605617508,0.87232699,784.64,784.34,1.012]
[1754605617707,0.87232699,784.63,784.34,1.012]
[1754605617906,0.87232699,784.62,784.34,1.012]
[1754605618108,0.87232699,784.61,784.34,1.012]
[1754605618307,0.87232699,784.6,784.34,1.012]
[1754605618505,0.87232699,784.59,784.34,1.012]
[1754605618707,0.87232699,784.58,784.34,1.012]
[1754605619011,0.87232699,784.57,784.34,1.012]
[1754605619209,0.87232699,784.56,784.34,1.012]
[1754605619407,0.87232699,784.55,784.34,1.012]
[1754605619608,0.87232699,784.54,784.34,1.012]
[1754605619813,0.87232699,784.53,784.34,1.012]
[1754605620014,0.87232699,784.52,784.34,1.012]
[1754605620210,0.87232699,784.51,784.34,1.012]
[1754605620513,0.87232699,784.5,784.34,1.012]
[1754605620710,0.87232699,784.49,784.34,1.012]
[1754605620914,0.87232699,784.48,784.34,1.012]
[1754605621110,0.87232699,784.47,784.34,1.012]
[1754605621413,0.87232699,784.46,784.34,1.012]
[1754605621615,0.87232699,784.45,784.34,1.012]
[1754605621912,0.85713897,784.84,784.34,1.012]
[1754605622111,0.87434926,784.83,784.34,1.012]
[1754605622315,1.73148823,784.82,784.34,1.012]
[1754605622610,0.87434926,784.81,784.34,1.012]
[1754605622812,0.85713897,784.83,784.34,1.012]
[1754605622813,0.87434926,784.8,784.34,1.012]
[1754605623015,0.87434926,784.79,784.34,1.012]
[1754605623214,0.87434926,784.78,784.34,1.012]
[1754605623417,0.87434926,784.77,784.34,1.012]
[1754605623613,0.87492642,784.76,784.34,1.012]
[1754605623817,0.87492642,784.75,784.34,1.012]
[1754605624117,0.87492642,784.74,784.34,1.012]
[1754605624318,0.87492642,784.73,784.34,1.012]
[1754605624517,0.87492642,784.72,784.34,1.012]
[1754605624814,0.87492642,784.71,784.34,1.012]
[1754605625017,0.87492642,784.7,784.34,1.012]
[1754605625215,0.22174998,785.05,784.34,1.012]
[1754605625216,0.87492642,784.69,784.34,1.012]
[1754605625414,0.87492642,784.68,784.34,1.012]
[1754605625715,0.87492642,784.67,784.34,1.012]
[1754605626015,0.87492642,784.66,784.34,1.012]
[1754605626217,0.87492642,784.65,784.34,1.012]
[1754605626414,0.87492642,784.64,784.34,1.012]
[1754605626618,0.87492642,784.63,784.35,1.003]
[1754605626820,0.87492642,784.62,784.35,1.003]
[1754605627016,0.87492642,784.61,784.35,1.003]
[1754605627314,0.87492642,784.6,784.35,1.003]
[1754605627520,0.87492642,784.59,784.35,1.003]
[1754605627818,0.87492642,784.58,784.35,1.003]
[1754605628020,0.87492642,784.57,784.35,1.003]
[1754605628216,0.87492642,784.56,784.35,1.003]
[1754605628421,0.87492642,784.55,784.35,1.003]
[1754605628719,0.87492642,784.54,784.35,1.003]
[1754605629019,0.87492642,784.53,784.35,1.003]
[1754605629318,0.87492642,784.52,784.35,1.003]
[1754605629516,0.87492642,784.51,784.35,1.003]
[1754605629714,0.87492642,784.5,784.35,1.003]
[1754605629918,0.87492642,784.49,784.35,1.003]
[1754605630118,0.87492642,784.48,784.35,1.003]
[1754605630322,0.87492642,784.47,784.35,1.003]
[1754605630618,0.87492642,784.46,784.35,1.003]
[1754605630816,0.87492642,784.45,784.35,1.003]
[1754605631016,0.87492642,784.44,784.35,1.003]
[1754605631316,0.87492642,784.43,784.35,1.003]
[1754605631519,0.87492642,784.42,784.35,1.003]
[1754605631717,0.87492642,784.41,784.35,1.003]
[1754605631921,0.87492642,784.4,784.35,1.003]
[1754605632222,0.87492642,784.39,784.35,1.003]
[1754605632417,0.87492642,784.38,784.35,1.003]
[1754605632619,0.87492642,784.37,784.35,1.003]
[1754605632824,0.87492642,784.36,784.35,1.003]
[1754605633722,0.87492642,784.66,784.35,1.003]
[1754605633925,0.87492642,784.65,784.35,1.003]
[1754605634224,0.87492642,784.64,784.35,1.003]
[1754605634521,0.87492642,784.63,784.35,1.003]
[1754605634734,0.87492642,784.62,784.35,1.003]
[1754605634918,0.87492642,784.61,784.35,1.003]
[1754605635127,0.87492642,784.6,784.35,1.003]
[1754605635324,0.85713897,784.68,784.35,1.003]
[1754605635325,0.87492642,784.59,784.35,1.003]
[1754605635521,0.87492642,784.58,784.35,1.003]
[1754605635723,0.87492642,784.57,784.35,1.003]
[1754605635922,0.87492642,784.56,784.35,1.003]
[1754605636127,0.87492642,784.55,784.35,1.003]
[1754605636423,0.87492642,784.54,784.35,1.003]
[1754605636627,0.87492642,784.53,784.35,1.003]
[1754605636927,0.87492642,784.52,784.35,1.003]
[1754605637125,0.87492642,784.51,784.35,1.003]
[1754605637327,0.87492642,784.5,784.35,1.003]
[1754605637526,0.87492642,784.49,784.35,1.003]
[1754605637728,0.87492642,784.48,784.35,1.003]
[1754605638026,0.87492642,784.47,784.35,1.003]
[1754605638227,0.87492642,784.46,784.35,1.003]
[1754605638425,0.87492642,784.45,784.35,1.003]
[1754605638728,0.85713897,784.77,784.35,1.003]
[1754605638729,0.87492642,784.44,784.35,1.003]
[1754605638930,0.87492642,784.43,784.35,1.003]
[1754605639132,0.87492642,784.42,784.35,1.003]
[1754605639334,0.87492642,784.41,784.35,1.003]
[1754605639531,0.87492642,784.4,784.35,1.003]
[1754605639732,0.87492642,784.39,784.35,1.003]
[1754605639930,0.85713897,784.78,784.35,1.003]
[1754605640128,0.87719654,784.77,784.35,1.003]
[1754605640329,0.87719654,784.76,784.35,1.003]
[1754605640631,0.87719654,784.75,784.35,1.003]
[1754605640832,0.87719654,784.74,784.35,1.003]
[1754605641129,0.87719654,784.73,784.35,1.003]
[1754605641330,0.87719654,784.72,784.35,1.003]
[1754605641530,0.87719654,784.71,784.35,1.003]
[1754605641728,0.87719654,784.7,784.35,1.003]
[1754605641930,0.87719654,784.69,784.35,1.003]
[1754605642133,0.87719654,784.68,784.35,1.003]
[1754605642328,0.87719654,784.67,784.35,1.003]
[1754605642530,0.87719654,784.66,784.35,1.003]
[1754605642733,0.87719654,784.65,784.35,1.003]
[1754605642935,0.87719654,784.64,784.35,1.003]
[1754605643135,0.87719654,784.63,784.35,1.003]
[1754605643337,0.87719654,784.62,784.35,1.003]
[1754605643535,0.87719654,784.61,784.35,1.003]
[1754605643737,0.87719654,784.6,784.35,1.003]
[1754605643933,0.85713897,784.79,784.35,1.003]
[1754605643934,0.87719654,784.59,784.35,1.003]
[1754605644135,0.87719654,784.58,784.35,1.003]
[1754605644338,0.87719654,784.57,784.35,1.003]
[1754605644639,0.87719654,784.56,784.35,1.003]
[1754605644934,0.87719654,784.55,784.34,1.012]
[1754605645234,0.87719654,784.54,784.34,1.012]
[1754605645438,0.87719654,784.53,784.34,1.012]
[1754605645635,0.87719654,784.52,784.34,1.012]
[1754605645837,0.87719654,784.51,784.34,1.012]
[1754605646034,0.87719654,784.5,784.34,1.012]
[1754605646337,0.87719654,784.49,784.34,1.012]
[1754605646637,0.87719654,784.48,784.34,1.012]
[1754605646837,0.87719654,784.47,784.34,1.012]
[1754605647037,0.87719654,784.46,784.34,1.012]
[1754605647237,0.87719654,784.45,784.35,0.758]
[1754605647439,0.87719654,784.44,784.35,0.758]
[1754605647636,0.87719654,784.43,784.35,0.758]
[1754605647835,0.87719654,784.42,784.35,0.758]
[1754605648040,0.87719654,784.41,784.35,0.758]
[1754605648235,0.87719654,784.4,784.35,0.758]
[1754605648433,0.87719654,784.39,784.35,0.758]
[1754605648639,0.87719654,784.38,784.35,0.758]
[1754605648840,0.87719654,784.37,784.35,0.758]
[1754605649137,0.87719654,784.36,784.35,0.758]
[1754605649341,0.87719654,784.6,784.35,0.758]
[1754605649641,0.87719654,784.59,784.35,1.77]
[1754605649937,0.87719654,784.58,784.35,1.77]
[1754605650139,0.87719654,784.57,784.35,1.77]
[1754605650336,0.87719654,784.56,784.35,1.77]
[1754605650536,0.87719654,784.55,784.35,1.77]
[1754605650740,0.87719654,784.54,784.35,1.77]
[1754605650937,0.87719654,784.53,784.35,1.77]
[1754605651139,0.87719654,784.52,784.35,1.77]
[1754605651342,0.87719654,784.51,784.35,1.77]
[1754605651639,0.87719654,784.5,784.35,1.77]
[1754605651938,0.87719654,784.49,784.35,1.77]
[1754605652138,0.87719654,784.48,784.35,1.77]
[1754605652342,0.87719654,784.47,784.35,1.77]
[1754605652542,0.87719654,784.46,784.35,1.77]
[1754605652739,0.87719654,784.45,784.35,1.77]
[1754605652938,0.87719654,784.44,784.35,1.77]
[1754605653239,0.87719654,784.43,784.35,1.77]
[1754605653437,0.87719654,784.42,784.35,1.77]
[1754605653641,0.87719654,784.41,784.35,1.77]
[1754605653843,0.87719654,784.4,784.35,1.77]
[1754605654140,0.87719654,784.39,784.35,1.77]
[1754605654343,0.87719654,784.38,784.35,1.77]
[1754605654542,0.87719654,784.37,784.35,1.77]
[1754605654742,0.87719654,784.36,784.35,1.77]
[1754605655542,0.87719654,784.54,784.35,1.77]
[1754605655742,0.87719654,784.53,784.35,1.77]
[1754605655938,0.87719654,784.52,784.35,1.77]
[1754605656143,0.87719654,784.51,784.35,1.77]
[1754605656343,0.87719654,784.5,784.35,1.77]
[1754605656543,0.87719654,784.49,784.35,1.77]
[1754605656740,0.87719654,784.48,784.35,1.77]
[1754605656939,0.87719654,784.47,784.35,1.77]
[1754605657142,0.87719654,784.46,784.35,1.77]
[1754605657341,0.87719654,784.45,784.35,1.77]
[1754605657545,0.87719654,784.44,784.35,1.77]
[1754605657844,0.85713897,784.55,784.35,1.77]
[1754605657845,0.87719654,784.43,784.35,1.77]
[1754605658042,0.87719654,784.42,784.35,1.77]
[1754605658243,0.85713897,784.55,784.35,1.77]
[1754605658244,0.87719654,784.41,784.35,1.77]
[1754605658442,0.87719654,784.4,784.35,1.77]
[1754605658743,0.87719654,784.39,784.35,1.77]
[1754605658947,0.87719654,784.38,784.35,1.77]
[1754605659144,0.87719654,784.37,784.35,1.77]
[1754605659346,0.87719654,784.36,784.35,1.77]
[1754605664049,0.85713897,784.48,784.35,1.77]
[1754605664249,0.87783171,784.47,784.35,1.77]
[1754605664453,0.87783171,784.46,784.35,1.77]
[1754605664650,0.87783171,784.45,784.35,1.77]
[1754605664850,0.87783171,784.44,784.35,1.77]
[1754605665054,0.87783171,784.43,784.35,1.77]
[1754605665249,0.87783171,784.42,784.35,1.77]
[1754605665455,0.87783171,784.41,784.35,1.77]
[1754605665654,0.87783171,784.4,784.35,1.77]
[1754605665855,0.87783171,784.39,784.35,1.77]
[1754605666055,0.87783171,784.38,784.35,1.77]
[1754605666352,0.87783171,784.37,784.35,1.77]
[1754605666550,0.87783171,784.36,784.35,1.77]
[1754605669155,0.85713897,784.46,784.35,1.77]
[1754605669358,0.87773081,784.45,784.35,1.77]
[1754605669560,0.87773081,784.44,784.35,1.77]
[1754605669755,0.87773081,784.43,784.35,1.77]
[1754605669954,0.87773081,784.42,784.35,1.77]
[1754605670253,0.87773081,784.41,784.35,1.77]
[1754605670459,0.87773081,784.4,784.35,1.77]
[1754605670656,0.87773081,784.39,784.35,1.77]
[1754605670854,0.87773081,784.38,784.35,1.77]
[1754605671055,0.87773081,784.37,784.35,1.77]
[1754605671258,0.87773081,784.36,784.35,1.77]
[1754605672358,0.87773081,784.36,784.35,1.012]
[1754605701681,0.87775613,784.36,784.35,1.012]
[1754605706685,0.87775613,784.36,784.26,1.024]
[1754605706885,0.87775613,784.35,784.26,1.024]
[1754605707183,0.87775613,784.34,784.11,0.979]
[1754605707388,0.87775613,784.33,784.11,0.979]
[1754605707583,0.87790979,784.32,784.11,0.979]
[1754605707782,0.87790979,784.31,784.11,0.979]
[1754605708084,0.87790979,784.3,784.11,0.979]
[1754605708286,0.85713897,784.54,784.11,0.979]
[1754605708287,0.87790979,784.29,784.11,0.979]
[1754605708485,0.87790979,784.28,784.11,0.979]
[1754605708685,0.87790979,784.27,784.11,0.979]
[1754605708886,0.87790979,784.26,784.11,0.979]
[1754605709088,0.85713897,784.54,784.11,0.979]
[1754605709289,0.87786281,784.53,784.11,0.979]
[1754605709492,0.87786281,784.52,784.12,1.05]
[1754605709691,0.87786281,784.51,784.12,1.05]
[1754605709892,0.87786281,784.5,784.12,1.05]
[1754605710192,0.87786281,784.49,784.13,1.041]
[1754605710391,0.87786281,784.48,784.13,1.041]
[1754605710592,0.87786281,784.47,784.13,1.041]
[1754605710792,0.87786281,784.46,784.13,1.041]
[1754605710991,0.87786281,784.45,784.13,1.041]
[1754605711193,0.87786281,784.44,784.13,1.041]
[1754605711389,0.87786281,784.43,784.13,1.041]
[1754605711592,0.87786281,784.42,784.13,1.041]
[1754605711792,0.87786281,784.41,784.13,1.041]
[1754605711993,0.87786281,784.4,784.13,1.041]
[1754605712293,0.87786281,784.39,784.13,1.041]
[1754605712488,0.87786281,784.38,784.13,1.041]
[1754605712692,0.87786281,784.37,784.13,1.041]
[1754605712891,0.87786281,784.36,784.13,1.041]
[1754605713191,0.87786281,784.35,784.13,1.041]
[1754605713389,0.87786281,784.34,784.13,1.041]
[1754605713589,0.87786281,784.33,784.13,1.041]
[1754605713792,0.87786281,784.32,784.13,1.041]
[1754605713999,0.85713897,784.6,784.13,1.041]
[1754605714192,0.87779311,784.59,784.13,1.041]
[1754605714495,0.87779311,784.58,784.13,1.041]
[1754605714795,0.87779311,784.57,784.13,1.041]
[1754605714994,0.87779311,784.56,784.13,1.041]
[1754605715195,0.87779311,784.55,784.13,1.041]
[1754605715396,0.87779311,784.54,784.13,1.041]
[1754605715692,0.87779311,784.53,784.13,1.041]
[1754605715893,0.87779311,784.52,784.13,1.041]
[1754605716093,0.87779311,784.51,784.13,1.041]
[1754605716291,0.87779311,784.5,784.13,1.041]
[1754605716494,0.87779311,784.49,784.13,1.041]
[1754605716698,0.87779311,784.48,784.13,1.041]
[1754605716895,0.87779311,784.47,784.13,1.041]
[1754605717094,0.87779311,784.46,784.13,1.041]
[1754605717299,0.87779311,784.45,784.13,1.041]
[1754605717499,0.87779311,784.44,784.13,1.041]
[1754605717700,0.87779311,784.43,784.13,1.041]
[1754605717900,0.87779311,784.42,784.13,1.041]
[1754605718097,0.87779311,784.41,784.13,1.041]
[1754605718302,0.87779311,784.4,784.13,1.041]
[1754605718503,0.87779311,784.39,784.13,1.041]
[1754605718804,0.87779311,784.38,784.13,1.041]
[1754605719002,0.87779311,784.37,784.13,1.041]
[1754605719200,0.87779311,784.36,784.13,1.041]
[1754605719506,0.87779311,784.35,784.13,1.041]
[1754605719704,0.87779311,784.34,784.13,1.041]
[1754605720004,0.22183833,784.68,784.13,1.041]
[1754605720005,0.87779311,784.33,784.13,1.041]
[1754605720201,0.87779311,784.32,784.13,1.041]
[1754605720400,0.87779311,784.31,784.13,1.041]
[1754605720600,0.87779311,784.3,784.13,1.041]
[1754605720800,0.87779311,784.29,784.13,1.041]
[1754605721011,0.87779311,784.28,784.13,1.041]
[1754605721204,0.87779311,784.27,784.13,1.041]
[1754605721501,0.87779311,784.26,784.13,1.041]
[1754605721705,0.87779311,784.25,784.13,1.041]
[1754605721902,0.87779311,784.24,784.13,1.041]
[1754605722201,0.87779311,784.23,784.13,1.041]
[1754605722400,0.87779311,784.22,784.13,1.041]
[1754605722601,0.87779311,784.21,784.13,1.041]
[1754605722806,0.87779311,784.2,784.13,1.041]
[1754605723008,0.85713897,784.49,784.13,1.041]
[1754605723307,0.877873,784.48,784.13,1.041]
[1754605723606,0.877873,784.47,784.13,1.041]
[1754605723805,0.877873,784.46,784.13,1.041]
[1754605724002,0.877873,784.45,784.13,1.041]
[1754605724207,0.877873,784.44,784.13,1.041]
[1754605724406,0.877873,784.43,784.13,1.041]
[1754605724605,0.877873,784.42,784.13,1.041]
[1754605724808,0.877873,784.41,784.13,1.041]
[1754605725108,0.877873,784.4,784.13,1.041]
[1754605725408,0.877873,784.39,784.13,1.041]
[1754605725708,0.877873,784.38,784.13,1.041]
[1754605725910,0.877873,784.37,784.13,1.041]
[1754605726109,0.877873,784.36,784.13,1.041]
[1754605726305,0.877873,784.35,784.13,1.041]
[1754605726509,0.877873,784.34,784.13,1.041]
[1754605726709,0.877873,784.33,784.13,1.041]
[1754605726906,0.877873,784.32,784.13,1.041]
[1754605727111,0.877873,784.31,784.13,1.041]
[1754605727311,0.877873,784.3,784.13,1.041]
[1754605727607,0.877873,784.29,784.13,1.041]
[1754605727807,0.877873,784.28,784.13,1.041]
[1754605728108,0.877873,784.27,784.13,1.041]
[1754605728312,0.877873,784.26,784.13,1.041]
[1754605728611,0.877873,784.25,784.13,1.041]
[1754605728809,0.877873,784.24,784.13,1.041]
[1754605729007,0.877873,784.23,784.13,1.041]
[1754605729206,0.85713897,784.57,784.13,1.041]
[1754605729510,1.73504552,784.56,784.13,1.041]
[1754605729710,0.87790655,784.55,784.13,1.041]
[1754605729909,0.22183833,784.68,784.13,1.041]
[1754605729910,0.87790655,784.54,784.13,1.041]
[1754605730109,0.87790655,784.53,784.13,1.041]
[1754605730312,0.87790655,784.52,784.13,1.041]
[1754605730510,0.87790655,784.51,784.13,1.041]
[1754605730710,0.87790655,784.5,784.13,1.041]
[1754605730912,0.85713897,784.57,784.13,1.041]
[1754605731111,0.87786102,784.56,784.13,1.041]
[1754605731313,0.87786102,784.55,784.13,1.041]
[1754605731513,0.87786102,784.54,784.13,1.041]
[1754605731714,0.87786102,784.53,784.13,1.041]
[1754605732013,0.87786102,784.52,784.13,1.041]
[1754605732212,0.87786102,784.51,784.13,1.041]
[1754605732413,0.87786102,784.5,784.13,1.041]
[1754605732712,0.87786102,784.49,784.13,1.041]
[1754605733012,0.87786102,784.48,784.13,1.041]
[1754605733312,0.87786102,784.47,784.13,1.041]
[1754605733517,0.87786102,784.46,784.13,1.041]
[1754605733812,0.87786102,784.45,784.13,1.041]
[1754605734012,0.87786102,784.44,784.13,1.041]
[1754605734315,0.87786102,784.43,784.11,0.979]
[1754605734513,0.87786102,784.42,784.11,0.979]
[1754605734711,0.85713897,784.58,784.11,0.979]
[1754605734712,0.87786102,784.41,784.11,0.979]
[1754605734916,0.87786102,784.4,784.11,0.979]
[1754605735113,0.87786102,784.39,784.11,0.979]
[1754605735317,0.87786102,784.38,784.11,0.979]
[1754605735613,0.87786102,784.37,784.11,0.979]
[1754605735816,0.87786102,784.36,784.11,0.979]
[1754605736014,0.87786102,784.35,784.11,0.979]
[1754605736218,0.87786102,784.34,784.11,0.979]
[1754605736414,0.87786102,784.33,784.11,0.979]
[1754605736619,0.85713897,784.57,784.11,0.979]
[1754605736819,0.87798193,784.56,784.11,0.979]
[1754605737016,0.87798193,784.55,784.11,0.979]
[1754605737219,0.87798193,784.54,784.11,0.979]
[1754605737421,0.87798193,784.53,784.11,0.979]
[1754605737621,0.87798193,784.52,784.11,0.979]
[1754605737815,0.87798193,784.51,784.11,0.979]
[1754605738020,0.87798193,784.5,784.11,0.979]
[1754605738221,0.87798193,784.49,784.11,0.979]
[1754605738517,0.87798193,784.48,784.11,0.979]